bitfinex/quotes_SOLUSD_20241223
["timestamp","ask_amount","ask_price","bid_price","bid_amount"]
[1734986964184,0.39009831,190.3,190.18,35.33020547]
[1734986964381,0.12549,190.29,190.16,35.33020547]
[1734986964543,0.39009831,190.28,190.15,35.33020547]
[1734986964943,0.39009831,190.28,190.11,0.7885903]
[1734986964944,0.39009831,190.28,190.16,35.33020547]
[1734986965182,24.16698231,190.3,190.16,35.33020547]
[1734986965356,0.39009831,190.3,190.18,35.33020547]
[1734986965559,20.12549,190.27,190.15,35.33020547]
[1734986965747,20.0,190.22,190.1,35.33020547]
[1734986965946,0.39009831,190.21,190.08,35.33020547]
[1734986966158,26.36,190.2,190.06,43.36320547]
[1734986966472,0.39009831,190.19,190.06,35.33020547]
[1734986966670,6.36,190.2,190.1,35.33020547]
[1734986966880,6.36,190.2,190.12,35.33020547]
[1734986967076,1.2224,190.24,190.14,35.33020547]
[1734986967247,1.2224,190.24,190.15,35.33020547]
[1734986967447,6.36,190.25,190.15,35.33020547]
[1734986967678,0.39009831,190.24,190.15,35.33020547]
[1734986967867,6.36,190.25,190.15,35.33020547]
[1734986968378,6.36,190.25,190.11,13.93862528]
[1734986968379,0.39009831,190.24,190.13,35.33020547]
[1734986969094,6.36,190.25,190.15,35.33020547]
[1734986969773,0.39009831,190.24,190.15,35.33020547]
[1734986970077,24.16698231,190.24,190.13,35.33020547]
[1734986970276,24.16698231,190.24,190.12,35.33020547]
[1734986970465,0.39009831,190.23,190.12,35.33020547]
[1734986970669,24.16698231,190.24,190.12,35.33020547]
[1734986971688,24.16698231,190.24,190.13,35.33020547]
[1734986971856,23.776884,190.24,190.13,35.33020547]
[1734986972249,24.16698231,190.24,190.13,35.33020547]
[1734986972480,6.36,190.25,190.15,35.33020547]
[1734986972680,24.16698231,190.24,190.13,35.33020547]
[1734986973054,0.12549,190.23,190.09,35.33020547]
[1734986973260,0.12549,190.21,190.07,35.33020547]
[1734986973588,0.39009831,190.2,190.08,35.33020547]
[1734986973961,24.16698231,190.24,190.13,35.33020547]
[1734986974308,0.39009831,190.24,190.14,35.33020547]
[1734986974483,6.36,190.25,190.15,35.33020547]
[1734986975178,6.36,190.25,190.16,35.33020547]
[1734986975477,6.36,190.25,190.17,35.33020547]
[1734986977280,8.19519831,190.3,190.17,35.33020547]
[1734986977580,7.8051,190.3,190.22,35.33020547]
[1734986977880,6.97279831,190.35,190.18,0.78835578]
[1734986978076,6.97279831,190.35,190.22,35.33020547]
[1734986978466,6.97279831,190.35,190.23,35.33020547]
[1734986978670,0.12549,190.34,190.21,35.33020547]
[1734986978980,0.39009831,190.33,190.19,35.33020547]
[1734986979191,0.12549,190.29,190.13,13.1484]
[1734986979486,7.93059,190.27,190.13,35.33020547]
[1734986979656,24.16698231,190.26,190.13,35.33020547]
[1734986980274,0.12549,190.25,190.11,21.76908667]
[1734986980479,23.776884,190.22,190.11,21.76908667]
[1734986980791,0.39009831,190.21,190.11,21.76908667]
[1734986982279,0.39009831,190.21,190.09,34.92038667]
[1734986985095,20.0,190.19,190.09,21.76908667]
[1734986985773,24.16698231,190.18,190.07,21.76908667]
[1734986985976,20.0,190.15,190.05,34.92298667]
[1734986986182,23.776884,190.14,190.03,21.76908667]
[1734986986472,20.0,190.15,190.05,21.76908667]
[1734986986688,23.776884,190.19,190.09,21.76908667]
[1734986986891,6.5827,190.2,190.11,21.76908667]
[1734986987583,6.5827,190.25,190.13,21.76908667]
[1734986988018,6.5827,190.25,190.15,21.76908667]
[1734986989096,23.776884,190.26,190.15,21.76908667]
[1734986990607,0.39009831,190.25,190.15,21.76908667]
[1734986990787,23.776884,190.26,190.15,21.76908667]
[1734986991190,0.39009831,190.25,190.15,21.76908667]
[1734986991914,0.39009831,190.25,190.13,21.76908667]
[1734986993299,20.0,190.23,190.13,21.76908667]
[1734986993502,24.16698231,190.22,190.13,21.76908667]
[1734986993822,24.16698231,190.22,190.11,21.76908667]
[1734986994209,24.16698231,190.22,190.09,29.31128667]
[1734986994409,23.776884,190.18,190.07,21.76908667]
[1734986994723,20.0,190.19,190.01,21.76908667]
[1734986994724,23.776884,190.14,190.01,21.76908667]
[1734986994887,0.39009831,190.13,190.0,0.12549]
[1734986995200,0.12549,190.09,189.96,21.76908667]
[1734986995394,20.0,190.07,189.94,21.76908667]
[1734986995617,24.16698231,190.06,189.92,21.76908667]
[1734986995791,24.16698231,190.06,189.94,21.76908667]
[1734986996429,24.16698231,190.06,189.92,21.76908667]
[1734986996902,24.16698231,190.06,189.94,21.76908667]
[1734986999029,24.16698231,190.06,189.92,21.76908667]
[1734986999030,20.0,190.03,189.92,21.76908667]
[1734986999316,20.0,189.99,189.88,21.76908667]
[1734986999509,23.776884,189.98,189.86,21.76908667]
[1734986999723,23.776884,189.98,189.88,21.76908667]
[1734987000338,1.2224,190.1,189.94,21.76908667]
[1734987000490,1.61249831,190.1,189.95,0.78933169]
[1734987000692,0.39009831,190.06,189.91,21.76908667]
[1734987001010,0.39009831,190.06,189.93,21.76908667]
[1734987001385,0.39009831,190.06,189.87,0.7895061]
[1734987001386,0.39009831,190.06,189.95,21.76908667]
[1734987001988,0.39009831,190.06,189.93,21.76908667]
[1734987003219,0.12549,190.05,189.91,21.76908667]
[1734987003414,43.776884,189.99,189.85,28.46120807]
[1734987003593,24.16698231,189.98,189.85,28.46120807]
[1734987003919,23.776884,189.94,189.85,0.6640214]
[1734987004220,26.3144,189.95,189.85,0.6640214]
[1734987005117,23.776884,189.97,189.87,21.76908667]
[1734987005297,1.61249831,189.98,189.86,21.76908667]
[1734987006417,1.2224,189.98,189.88,21.76908667]
[1734987006627,24.16698231,189.99,189.88,21.76908667]
[1734987006833,24.16698231,189.99,189.85,1.45371669]
[1734987006834,6.3144,190.0,189.9,21.76908667]
[1734987007001,6.3144,190.0,189.92,21.76908667]
[1734987007731,0.39009831,189.99,189.89,21.76908667]
[1734987007935,6.3144,190.0,189.89,21.76908667]
[1734987008180,1.2224,190.03,189.95,21.76908667]
[1734987008336,6.0027,190.05,189.95,21.76908667]
[1734987008737,6.0027,190.05,189.97,21.76908667]
[1734987008946,1.2224,190.09,189.99,21.76908667]
[1734987009243,6.0027,190.11,190.01,21.76908667]
[1734987010032,0.12549,190.09,189.95,21.76908667]
[1734987010340,0.12549,190.03,189.88,6.1683]
[1734987010533,0.12549,190.03,189.85,0.6640214]
[1734987010534,0.12549,190.01,189.87,21.76908667]
[1734987010731,23.776884,189.98,189.87,21.76908667]
[1734987010951,0.39009831,189.97,189.87,21.76908667]
[1734987011164,0.39009831,189.97,189.85,22.43310807]
[1734987012363,0.39009831,189.97,189.85,0.6640214]
[1734987012752,0.39009831,189.97,189.86,35.48338222]
[1734987013065,24.16698231,189.98,189.86,35.48338222]
[1734987013264,1.2224,190.03,189.9,35.48338222]
[1734987013473,1.61249831,190.03,189.9,35.48338222]
[1734987013649,1.61249831,190.03,189.93,35.48338222]
[1734987013973,0.39009831,190.02,189.86,13.1675]
[1734987014278,0.12549,189.98,189.84,35.48338222]
[1734987014456,0.51558831,189.98,189.84,35.48338222]
[1734987014843,0.39009831,189.98,189.86,35.48338222]
[1734987015263,20.0,189.96,189.86,35.48338222]
[1734987015455,0.39009831,189.95,189.86,35.48338222]
[1734987015771,20.0,189.96,189.86,35.48338222]
[1734987015966,0.39009831,189.95,189.86,35.48338222]
[1734987016169,20.0,189.96,189.86,35.48338222]
[1734987016364,0.39009831,189.98,189.86,35.48338222]
[1734987016554,20.0,189.96,189.86,35.48338222]
[1734987018047,0.39009831,189.95,189.86,35.48338222]
[1734987018269,24.16698231,189.95,189.82,35.48338222]
[1734987018567,20.0,189.96,189.8,13.1711]
[1734987018568,1.2224,189.97,189.86,35.48338222]
[1734987018768,1.61249831,190.02,189.9,35.48338222]
[1734987018975,0.39009831,190.01,189.9,35.48338222]
[1734987019546,1.2224,190.02,189.92,35.48338222]
[1734987019758,0.39009831,190.03,189.94,35.48338222]
[1734987019958,0.12549,190.02,189.9,35.48338222]
[1734987020140,0.39009831,190.03,189.9,35.48338222]
[1734987020359,0.39009831,190.03,189.92,35.48338222]
[1734987020668,0.39009831,190.03,189.9,35.48338222]
[1734987020980,20.0,190.01,189.9,35.48338222]
[1734987021193,0.39009831,190.03,189.93,0.12549]
[1734987021371,6.5307,190.04,189.96,35.48338222]
[1734987021578,1.2224,190.07,189.98,35.48338222]
[1734987021776,0.39009831,190.06,189.98,35.48338222]
[1734987022391,0.39009831,190.06,189.96,35.48338222]
[1734987022767,6.5827,190.09,189.99,35.60887222]
[1734987022968,1.2224,190.12,189.99,35.60887222]
[1734987022969,1.2224,190.12,190.03,35.48338222]
[1734987023176,6.4146,190.14,190.05,35.48338222]
[1734987023681,0.39009831,190.13,190.0,35.48338222]
[1734987023987,0.39009831,190.13,189.97,13.1599]
[1734987023988,0.39009831,190.13,189.98,35.48338222]
[1734987024454,0.12549,190.12,189.98,35.48338222]
[1734987024788,23.776884,190.1,189.98,35.48338222]
[1734987025085,0.39009831,190.09,189.98,35.48338222]
[1734987025259,23.776884,190.1,189.98,35.48338222]
[1734987025260,24.16698231,190.1,189.98,35.48338222]
[1734987026295,20.0,190.07,189.96,35.48338222]
[1734987026449,20.0,190.07,189.98,35.48338222]
[1734987026914,43.776884,190.1,189.98,35.48338222]
[1734987027043,43.776884,190.1,189.93,13.1624]
[1734987027044,20.0,190.1,190.0,35.48338222]
[1734987027378,20.0,190.1,190.01,35.48338222]
[1734987027758,20.0,190.11,190.01,35.48338222]
[1734987028978,23.776884,190.1,189.99,35.48338222]
[1734987029178,24.16698231,190.1,189.97,35.48338222]
[1734987030249,20.0,190.05,189.95,35.48338222]
[1734987030450,20.0,190.01,189.91,35.48338222]
[1734987030680,24.16698231,190.02,189.91,35.48338222]
[1734987030999,0.39009831,190.02,189.93,35.48338222]
[1734987031209,6.0301,190.03,189.95,35.48338222]
[1734987032284,24.16698231,190.02,189.91,35.48338222]
[1734987032677,24.16698231,190.02,189.93,35.48338222]
[1734987033973,6.0301,190.03,189.93,35.48338222]
[1734987034195,6.0301,190.03,189.93,21.81407894]
[1734987034900,1.2224,190.05,189.97,21.81407894]
[1734987035072,6.5827,190.07,189.97,21.81407894]
[1734987035389,1.2224,190.1,190.02,21.81407894]
[1734987035599,6.2033,190.12,190.03,21.81407894]
[1734987035902,0.39009831,190.11,189.99,21.81407894]
[1734987036281,6.2033,190.12,190.05,21.81407894]
[1734987036594,1.61249831,190.16,190.06,21.81407894]
[1734987037083,1.61249831,190.16,190.05,21.81407894]
[1734987037267,1.61249831,190.16,190.06,21.81407894]
[1734987037664,23.776884,190.15,190.04,21.81407894]
[1734987037886,20.39009831,190.14,190.02,21.81407894]
[1734987038194,20.0,190.13,190.01,21.81407894]
[1734987038506,0.39009831,190.12,190.01,21.81407894]
[1734987039411,20.0,190.14,190.04,21.81407894]
[1734987039565,20.0,190.14,190.05,21.81407894]
[1734987040065,1.61249831,190.16,190.06,41.81407894]
[1734987040380,1.61249831,190.16,190.06,21.81407894]
[1734987041003,1.2224,190.16,190.06,21.81407894]
[1734987041300,1.2224,190.16,190.08,21.81407894]
[1734987041509,6.2033,190.17,190.08,21.81407894]
[1734987042522,6.2033,190.17,190.09,21.81407894]
[1734987042821,7.3363,190.21,190.11,21.81407894]
[1734987042985,7.3363,190.21,190.1,21.81407894]
[1734987043389,0.39009831,190.18,190.05,21.81407894]
[1734987043622,0.12549,190.17,190.03,21.81407894]
[1734987044310,0.12549,190.17,190.01,21.81407894]
[1734987044311,23.776884,190.14,190.01,21.81407894]
[1734987044618,23.776884,190.14,190.02,21.81407894]
[1734987044619,24.16698231,190.14,190.02,21.81407894]
[1734987045125,24.16698231,190.14,190.0,21.81407894]
[1734987045291,20.0,190.11,189.96,14.7346]
[1734987045494,24.16698231,190.1,189.98,21.81407894]
[1734987045747,25.38938231,190.1,189.98,21.81407894]
[1734987046608,0.12549,190.09,189.96,21.81407894]
[1734987046913,23.776884,190.04,189.94,21.81407894]
[1734987047229,0.39009831,190.04,189.95,21.81407894]
[1734987047434,24.16698231,190.06,189.95,21.81407894]
[1734987047927,23.776884,190.02,189.93,21.81407894]
[1734987048235,23.776884,190.02,189.9,35.4616472]
[1734987048236,6.97279831,190.01,189.9,35.4616472]
[1734987048524,6.5827,190.06,189.96,35.4616472]
[1734987049030,6.5827,190.06,189.97,35.4616472]
[1734987049400,0.39009831,190.05,189.95,35.4616472]
[1734987049909,6.5827,190.06,189.95,35.4616472]
[1734987050229,6.5827,190.06,189.97,35.4616472]
[1734987052625,6.5827,190.06,189.99,35.4616472]
[1734987053541,6.5827,190.06,189.98,20.0]
[1734987053703,6.2237,190.11,190.01,35.4616472]
[1734987053899,7.4461,190.15,190.05,35.4616472]
[1734987054515,7.4461,190.15,190.07,35.4616472]
[1734987055636,7.4461,190.15,190.05,35.4616472]
[1734987055935,0.12549,190.13,190.01,35.4616472]
[1734987056139,24.16698231,190.14,190.01,35.4616472]
[1734987056905,24.16698231,190.14,190.03,35.4616472]
[1734987057413,7.4461,190.15,190.06,55.4616472]
[1734987057624,6.2237,190.15,190.07,35.4616472]
[1734987058234,10.0,190.19,190.09,35.4616472]
[1734987058536,10.0,190.19,190.1,35.4616472]
[1734987060444,10.0,190.19,190.08,13.152]
[1734987060445,10.0,190.19,190.08,48.6136472]
[1734987060619,10.0,190.19,190.1,35.4616472]
[1734987061046,10.0,190.19,190.11,0.12549]
[1734987061341,10.0,190.19,190.14,35.4616472]
[1734987061564,10.0,190.19,190.13,55.4616472]
[1734987061928,10.0,190.19,190.13,20.0]
[1734987062321,10.0,190.19,190.13,55.4616472]
[1734987064572,10.0,190.19,190.15,35.4616472]
[1734987064714,10.0,190.19,190.13,55.4616472]
[1734987065339,10.0,190.19,190.15,35.4616472]
[1734987066140,10.0,190.19,190.17,35.4616472]
[1734987067111,10.0,190.19,190.15,48.6089472]
[1734987067535,10.0,190.19,190.16,0.12549]
[1734987067730,10.0,190.19,190.17,35.4616472]
[1734987068048,10.0,190.19,190.18,0.12549]
[1734987068249,10.0,190.19,190.18,1.71229]
[1734987068458,6.57129831,190.36,190.22,20.0]
[1734987068651,6.57129831,190.36,190.25,35.4616472]
[1734987069175,6.57129831,190.36,190.23,55.4616472]
[1734987069726,6.57129831,190.36,190.22,35.4616472]
[1734987069927,30.12549,190.35,190.19,35.4616472]
[1734987070134,0.12549,190.33,190.19,35.4616472]
[1734987070336,20.0,190.28,190.17,34.9033254]
[1734987070536,20.0,190.28,190.17,13.1456]
[1734987070537,24.16698231,190.27,190.17,13.1456]
[1734987070737,24.16698231,190.27,190.15,27.9275254]
[1734987070738,24.16698231,190.27,190.13,36.4181254]
[1734987071938,24.16698231,190.27,190.14,0.12549]
[1734987072143,0.39009831,190.3,190.17,0.12549]
[1734987072465,11.26788267,190.36,190.21,21.7577254]
[1734987072466,0.39009831,190.34,190.21,21.7577254]
[1734987072673,0.39009831,190.34,190.22,21.8832154]
[1734987072967,0.39009831,190.34,190.22,21.7577254]
[1734987073345,0.39009831,190.35,190.22,21.7577254]
[1734987073927,20.0,190.33,190.22,21.7577254]
[1734987074163,0.39009831,190.32,190.21,13.1427]
[1734987074648,0.39009831,190.32,190.2,21.7577254]
[1734987075051,24.16698231,190.32,190.2,21.7577254]
[1734987075742,20.0,190.29,190.18,21.7577254]
[1734987075950,24.16698231,190.28,190.18,21.7577254]
[1734987076641,23.776884,190.28,190.18,21.7577254]
[1734987076841,24.16698231,190.28,190.18,21.7577254]
[1734987077042,0.12549,190.27,190.16,21.7577254]
[1734987077238,24.16698231,190.28,190.16,21.7577254]
[1734987077239,0.39009831,190.28,190.16,21.7577254]
[1734987077440,30.0,190.39,190.22,21.7577254]
[1734987077643,0.39009831,190.35,190.22,21.7577254]
[1734987078962,0.12549,190.34,190.2,34.9011254]
[1734987079162,0.12549,190.32,190.2,21.7577254]
[1734987079664,0.12549,190.32,190.18,21.7577254]
[1734987079866,20.0,190.3,190.18,21.7577254]
[1734987080062,20.0,190.3,190.13,1.5118]
[1734987080063,20.0,190.3,190.21,21.7577254]
[1734987080264,0.39009831,190.35,190.25,21.7577254]
[1734987080469,30.0,190.4,190.25,21.7577254]
[1734987080470,6.57129831,190.36,190.25,21.7577254]
[1734987080659,6.1812,190.36,190.25,21.7577254]
[1734987080962,6.57129831,190.36,190.25,21.7577254]
[1734987081260,6.1812,190.36,190.27,21.7577254]
[1734987081449,0.39009831,190.35,190.25,21.7577254]
[1734987081649,0.39009831,190.35,190.23,21.7577254]
[1734987081851,1.70339831,190.35,190.23,21.7577254]
[1734987082252,0.12549,190.34,190.21,21.7577254]
[1734987082447,20.12549,190.32,190.19,21.7577254]
[1734987082650,23.776884,190.29,190.19,21.7577254]
[1734987082850,20.0,190.3,190.19,22.54616923]
[1734987083044,24.16698231,190.35,190.23,21.7577254]
[1734987083245,24.16698231,190.35,190.25,21.7577254]
[1734987083660,1.2224,190.37,190.25,21.7577254]
[1734987083862,0.39009831,190.35,190.25,21.7577254]
[1734987084779,24.16698231,190.35,190.22,20.0]
[1734987085147,20.0,190.32,190.2,21.7577254]
[1734987085370,24.16698231,190.31,190.2,21.7577254]
[1734987085687,20.0,190.26,190.14,21.7577254]
[1734987085848,24.16698231,190.25,190.14,21.7577254]
[1734987087771,23.776884,190.25,190.14,21.7577254]
[1734987087983,1.61249831,190.26,190.16,21.7577254]
[1734987088150,1.2224,190.26,190.18,21.7577254]
[1734987089166,1.2224,190.26,190.16,21.8832154]
[1734987089847,6.3261,190.27,190.18,21.7577254]
[1734987090564,24.16698231,190.26,190.18,21.7577254]
[1734987090761,0.39009831,190.26,190.16,21.7577254]
[1734987090970,6.3261,190.27,190.2,21.7577254]
[1734987091475,0.39009831,190.31,190.22,21.7577254]
[1734987092148,0.39009831,190.31,190.2,21.7577254]
[1734987093050,24.16698231,190.31,190.2,21.7577254]
[1734987094688,24.16698231,190.31,190.17,13.93421931]
[1734987094689,24.16698231,190.31,190.18,21.7577254]
[1734987094982,25.48068231,190.31,190.18,21.7577254]
[1734987095180,0.12549,190.3,190.18,21.7577254]
[1734987095384,0.12549,190.3,190.16,21.7577254]
[1734987095584,0.12549,190.26,190.12,21.7577254]
[1734987095881,0.51558831,190.26,190.12,21.7577254]
[1734987096177,0.12549,190.24,190.12,21.7577254]
[1734987096353,0.12549,190.24,190.08,21.7577254]
[1734987096354,0.12549,190.22,190.08,21.7577254]
[1734987096559,23.776884,190.18,190.04,28.0771254]
[1734987096756,23.776884,190.18,190.06,21.7577254]
[1734987096757,24.16698231,190.18,190.06,21.7577254]
[1734987096958,1.3144,190.2,190.09,21.7577254]
[1734987097158,24.16698231,190.19,190.09,21.7577254]
[1734987097393,24.16698231,190.19,190.06,21.7577254]
[1734987097687,20.0,190.16,190.06,21.7577254]
[1734987097991,0.39009831,190.18,190.07,21.7577254]
[1734987098195,23.776884,190.19,190.09,21.7577254]
[1734987098380,23.776884,190.19,190.06,0.12549]
[1734987098381,0.39009831,190.18,190.08,21.7577254]
[1734987099399,1.61249831,190.23,190.11,21.7577254]
[1734987099616,23.776884,190.22,190.12,21.7577254]
[1734987099889,1.61249831,190.23,190.09,0.78881604]
[1734987099890,1.2224,190.23,190.13,22.54637546]
[1734987100095,1.2224,190.23,190.14,21.7577254]
[1734987100698,0.39009831,190.22,190.13,21.7577254]
[1734987101214,24.16698231,190.22,190.11,21.7577254]
[1734987101575,24.16698231,190.22,190.09,21.7577254]
[1734987101769,23.776884,190.18,190.07,21.7577254]
[1734987101966,0.39009831,190.17,190.07,21.7577254]
[1734987102196,0.39009831,190.17,190.05,21.7577254]
[1734987103378,0.39009831,190.17,190.08,21.7577254]
[1734987103587,0.39009831,190.17,190.06,21.7577254]
[1734987104187,23.776884,190.18,190.08,21.7577254]
[1734987104704,24.16698231,190.18,190.08,21.7577254]
[1734987105684,24.16698231,190.18,190.06,21.7577254]
[1734987105886,6.2291,190.16,190.01,34.9147254]
[1734987106088,24.16698231,190.15,190.01,34.9147254]
[1734987106614,0.12549,190.14,190.01,21.7577254]
[1734987106909,24.16698231,190.15,190.03,21.7577254]
[1734987108125,24.16698231,190.15,190.05,21.7577254]
[1734987108313,7.5438,190.16,190.06,21.7577254]
[1734987108614,24.16698231,190.15,190.04,21.7577254]
[1734987109215,43.776884,190.12,190.0,21.7577254]
[1734987109510,23.776884,190.12,190.02,21.7577254]
[1734987110607,1.61249831,190.13,190.04,21.7577254]
[1734987110608,21.2224,190.13,190.04,21.7577254]
[1734987110789,1.2224,190.13,190.04,21.7577254]
[1734987112405,1.2224,190.13,190.05,21.7577254]
[1734987112778,1.2224,190.13,190.04,21.7577254]
[1734987113314,21.61249831,190.13,190.03,21.7577254]
[1734987114109,6.2291,190.16,190.04,0.78902103]
[1734987114312,1.2224,190.19,190.11,21.7577254]
[1734987114711,1.2224,190.19,190.12,21.7577254]
[1734987114913,1.2224,190.19,190.1,21.7577254]
[1734987115411,1.3141,190.25,190.14,21.7577254]
[1734987115621,1.70419831,190.25,190.14,21.7577254]
[1734987115913,1.70419831,190.25,190.15,21.7577254]
[1734987117138,23.902374,190.24,190.13,21.7577254]
[1734987117310,0.39009831,190.23,190.13,21.7577254]
[1734987117620,23.902374,190.24,190.13,21.7577254]
[1734987117790,0.39009831,190.23,190.12,21.7577254]
[1734987118295,0.39009831,190.23,190.13,21.7577254]
[1734987118503,0.39009831,190.23,190.12,21.7577254]
[1734987119795,0.39009831,190.23,190.11,21.7577254]
[1734987120200,0.12549,190.22,190.11,21.7577254]
[1734987120525,0.12549,190.22,190.1,0.78867974]
[1734987120526,0.12549,190.21,190.1,22.54648093]
[1734987120829,0.12549,190.21,190.1,21.7577254]
[1734987121228,0.12549,190.19,190.09,20.0]
[1734987121432,0.12549,190.19,190.07,1.6277]
[1734987121433,1.2224,190.18,190.06,34.9112254]
[1734987121740,1.2224,190.18,190.07,21.7577254]
[1734987121906,1.2224,190.18,190.09,21.7577254]
[1734987122110,1.2224,190.18,190.1,21.7577254]
[1734987122331,21.2224,190.23,190.12,21.7577254]
[1734987122629,11.2224,190.23,190.13,21.7577254]
[1734987122837,1.3141,190.24,190.13,21.7577254]
[1734987123034,0.12549,190.22,190.11,21.7577254]
[1734987123226,0.12549,190.22,190.09,21.7577254]
[1734987124233,0.12549,190.22,190.11,21.7577254]
[1734987126039,24.16698231,190.23,190.11,21.7577254]
[1734987126420,0.39009831,190.25,190.12,21.7577254]
[1734987126624,6.5827,190.26,190.16,21.7577254]
[1734987126952,6.5827,190.26,190.18,21.7577254]
[1734987127245,6.3197,190.31,190.19,21.7577254]
[1734987127448,0.39009831,190.3,190.19,21.7577254]
[1734987127613,0.39009831,190.3,190.18,21.7577254]
[1734987128014,0.12549,190.29,190.17,21.7577254]
[1734987128246,0.12549,190.29,190.14,21.7577254]
[1734987128417,20.0,190.27,190.14,21.7577254]
[1734987128616,0.12549,190.25,190.12,21.7577254]
[1734987128821,0.12549,190.25,190.13,21.7577254]
[1734987129324,0.12549,190.25,190.11,23.3798254]
[1734987130045,20.0,190.23,190.13,21.7577254]
[1734987130252,0.12549,190.25,190.13,21.7577254]
[1734987130838,0.12549,190.25,190.12,21.7577254]
[1734987131015,0.12549,190.25,190.11,23.3798254]
[1734987131760,23.902374,190.22,190.1,21.7577254]
[1734987131916,0.39009831,190.21,190.1,21.7577254]
[1734987132350,24.29247231,190.22,190.1,21.7577254]
[1734987133050,24.29247231,190.22,190.09,21.7577254]
[1734987133347,23.902374,190.2,190.06,21.7577254]
[1734987133548,0.39009831,190.19,190.08,21.7577254]
[1734987133858,6.4805,190.26,190.15,21.7577254]
[1734987134050,0.39009831,190.25,190.15,21.7577254]
[1734987134237,0.39009831,190.25,190.14,21.7577254]
[1734987134836,0.39009831,190.25,190.12,21.7577254]
[1734987135160,24.16698231,190.25,190.12,21.7577254]
[1734987135721,20.0,190.22,190.1,41.7577254]
[1734987136054,6.0338,190.32,190.2,21.7577254]
[1734987136255,6.0338,190.32,190.24,21.7577254]
[1734987143862,6.0338,190.32,190.22,21.7577254]
[1734987145359,6.0338,190.32,190.24,21.7577254]
[1734987146863,6.2048,190.38,190.29,21.7577254]
[1734987147184,6.2048,190.38,190.31,21.7577254]
[1734987148763,6.2048,190.38,190.29,21.7577254]
[1734987149443,6.2048,190.38,190.27,41.7577254]
[1734987150054,6.2048,190.38,190.29,21.7577254]
[1734987150254,6.2048,190.38,190.27,41.7577254]
[1734987151760,6.2048,190.38,190.31,21.7577254]
[1734987152476,6.2048,190.38,190.27,20.78795777]
[1734987152477,6.2048,190.38,190.29,21.7577254]
[1734987154360,24.29247231,190.37,190.27,21.7577254]
[1734987154763,6.2048,190.38,190.27,21.7577254]
[1734987154962,24.16698231,190.37,190.27,21.7577254]
[1734987155571,0.12549,190.36,190.25,21.7577254]
[1734987155776,0.12549,190.36,190.19,6.477]
[1734987155777,20.0,190.29,190.19,21.7577254]
[1734987156245,20.0,190.29,190.15,0.78845725]
[1734987156246,20.0,190.29,190.21,21.7577254]
[1734987158066,6.2865,190.32,190.21,21.7577254]
[1734987158254,6.2865,190.32,190.23,21.7577254]
[1734987159441,6.2865,190.32,190.21,21.7577254]
[1734987159668,0.39009831,190.31,190.21,21.7577254]
[1734987159966,6.5066,190.37,190.27,21.7577254]
[1734987160272,6.84019831,190.41,190.3,13.58305977]
[1734987160458,6.4501,190.41,190.32,13.58305977]
[1734987160658,6.4501,190.41,190.31,0.78784877]
[1734987160971,6.4501,190.41,190.3,13.58305977]
[1734987161769,20.0,190.38,190.3,13.58305977]
[1734987161967,6.4501,190.41,190.32,13.58305977]
[1734987162194,6.2372,190.46,190.34,21.72343282]
[1734987162544,0.39009831,190.45,190.34,21.72343282]
[1734987162739,0.12549,190.44,190.34,21.72343282]
[1734987163073,6.2372,190.46,190.35,0.78770185]
[1734987163272,6.2372,190.46,190.25,8.0055]
[1734987163273,0.39009831,190.45,190.32,21.72343282]
[1734987163646,0.12549,190.44,190.32,21.72343282]
[1734987163959,0.39009831,190.45,190.33,21.72343282]
[1734987164156,6.2372,190.46,190.34,21.72343282]
[1734987164351,6.2372,190.46,190.36,21.72343282]
[1734987164757,6.2372,190.46,190.35,22.51105987]
[1734987166059,6.2372,190.46,190.36,21.72343282]
[1734987166945,6.2372,190.46,190.34,21.72343282]
[1734987167876,6.2372,190.46,190.36,21.72343282]
[1734987168179,6.2372,190.46,190.33,20.78764356]
[1734987168180,6.2372,190.46,190.35,21.72343282]
[1734987168364,6.2372,190.46,190.34,21.72343282]
[1734987169283,6.2372,190.46,190.33,21.72343282]
[1734987169576,20.0,190.43,190.31,22.51103102]
[1734987169773,20.0,190.43,190.28,20.0]
[1734987169774,20.39009831,190.42,190.29,21.72343282]
[1734987169981,20.39009831,190.42,190.27,21.72343282]
[1734987170152,23.902374,190.41,190.29,21.72343282]
[1734987170352,0.39009831,190.4,190.29,21.72343282]
[1734987170981,20.0,190.43,190.31,21.72343282]
[1734987171578,20.0,190.43,190.32,21.72343282]
[1734987172357,0.39009831,190.42,190.32,21.72343282]